bitfinex-derivatives/quotes_ETHF0:USTF0_20250116
["timestamp","ask_amount","ask_price","bid_price","bid_amount"]
[1737029843425,0.59653,3353.2,3353.1,3.2078]
[1737029843618,0.59653,3353.2,3353.1,5.44789291]
[1737029843822,0.59653,3353.2,3353.1,4.85134291]
[1737029844522,0.59653,3353.2,3353.1,4.85142021]
[1737029844720,0.59653,3353.2,3353.1,4.20721872]
[1737029844928,3.80433,3353.2,3353.1,0.40262164]
[1737029845323,3.80433,3353.2,3352.5,1.7026]
[1737029845324,0.59664,3352.6,3352.5,1.7026]
[1737029845522,0.59664,3352.6,3352.5,3.34545587]
[1737029846224,0.59664,3352.6,3352.5,3.94211587]
[1737029846419,0.59664,3352.6,3352.5,0.86589848]
[1737029846621,0.59664,3352.6,3352.5,1.46255848]
[1737029846815,0.59662,3352.7,3352.6,0.59662]
[1737029847018,0.59662,3352.7,3352.6,0.40229848]
[1737029848619,0.59668,3352.4,3352.3,3.60345078]
[1737029848819,0.59668,3352.4,3352.3,4.00509831]
[1737029849427,0.59668,3352.4,3352.3,4.60178831]
[1737029850024,0.59668,3352.4,3352.3,4.60140675]
[1737029850226,0.59668,3352.4,3352.3,3.60345078]
[1737029850418,0.59668,3352.4,3352.3,1.239]
[1737029851225,0.59668,3352.4,3352.3,3.60345078]
[1737029851423,0.59668,3352.4,3352.3,4.00418005]
[1737029851622,0.59668,3352.4,3352.3,4.60087005]
[1737029852030,0.59668,3352.4,3352.3,4.00418005]
[1737029852331,0.59668,3352.4,3352.3,4.20014078]
[1737029852527,0.59668,3352.4,3352.3,3.60345078]
[1737029852831,0.59668,3352.4,3352.3,4.20014078]
[1737029853030,0.59668,3352.4,3352.3,3.60345078]
[1737029854334,0.59668,3352.4,3352.3,4.20014078]
[1737029855129,0.59668,3352.4,3352.3,3.60345078]
[1737029855827,3.2078,3352.8,3352.3,3.60345078]
[1737029856229,0.59668,3352.4,3352.3,4.20013078]
[1737029856639,0.59668,3352.4,3352.3,3.60345078]
[1737029856935,0.59668,3352.4,3352.3,4.20014078]
[1737029857325,0.59668,3352.4,3352.3,3.60345078]
[1737029857529,0.59668,3352.4,3352.3,4.20014078]
[1737029857932,0.59668,3352.4,3352.3,3.60345078]
[1737029858834,0.59668,3352.4,3352.3,4.20014078]
[1737029859536,0.59668,3352.5,3352.4,0.59666]
[1737029859729,3.2078,3352.8,3352.3,3.60345078]
[1737029859932,0.59668,3352.4,3352.3,4.20014078]
[1737029860125,0.59668,3352.4,3352.3,3.60345078]
[1737029860533,0.59668,3352.4,3352.3,4.20014078]
[1737029861231,0.59668,3352.4,3352.3,4.57321161]
[1737029861439,0.59668,3352.4,3352.3,4.97251575]
[1737029861631,3.2078,3353.6,3352.4,1.4917]
[1737029861838,0.59642,3353.9,3353.8,0.5964]
[1737029862035,5.18118,3354.3,3353.6,5.57225078]
[1737029862241,3.6903,3354.3,3353.9,2.36445078]
[1737029862535,0.59639,3354.0,3353.9,2.36445078]
[1737029862748,0.59641,3353.9,3353.8,0.59642]
[1737029862929,3.6903,3354.3,3353.6,3.2078]
[1737029863239,0.59648,3353.6,3353.5,0.59646]
[1737029863532,3.6903,3354.3,3353.5,0.77232517]
[1737029863831,0.59648,3353.6,3353.5,0.59646]
[1737029864036,0.59648,3353.6,3353.5,0.77231547]
[1737029864232,0.59648,3353.6,3353.5,0.77194892]
[1737029864425,0.59648,3353.6,3353.5,1.3684308]
[1737029864838,0.59643,3353.9,3353.8,0.59641]
[1737029866935,0.59644,3353.7,3353.6,3.80426]
[1737029867237,3.2078,3353.9,3353.4,0.59649]
[1737029867446,0.59646,3353.6,3353.5,0.37294854]
[1737029867637,4.69887,3353.9,3353.4,0.59649]
[1737029867838,0.59646,3353.6,3353.5,0.9694309]
[1737029868241,0.59646,3353.6,3353.5,0.77243415]
[1737029868439,4.69887,3353.9,3353.4,0.59649]
[1737029868645,3.2078,3353.9,3353.2,3.2078]
[1737029868942,0.5965,3353.4,3353.3,0.77268013]
[1737029869541,0.5965,3353.4,3353.3,1.36920013]
[1737029870142,0.5965,3353.4,3353.3,0.77268013]
[1737029870442,0.9235,3353.6,3352.9,0.59657]
[1737029870644,0.9235,3353.6,3353.0,0.773313]
[1737029870645,1.49128,3353.4,3353.0,0.773313]
[1737029870939,0.59661,3352.9,3352.8,0.59659]
[1737029871246,0.59661,3352.9,3352.8,2.01131428]
[1737029871444,0.59661,3352.9,3352.8,1.96689094]
[1737029871944,0.59661,3352.9,3352.8,1.37029094]
[1737029872440,0.59661,3352.9,3352.8,2.01204979]
[1737029872651,0.59661,3352.9,3352.8,0.77344492]
[1737029873444,0.59661,3352.9,3352.8,1.37031391]
[1737029874241,0.59659,3352.9,3352.8,1.9677243]
[1737029874443,0.59659,3352.9,3352.8,2.60964575]
[1737029875245,0.59659,3352.9,3352.8,2.01304575]
[1737029875945,0.59659,3352.9,3352.8,2.60964575]
[1737029876142,0.59659,3352.9,3352.8,2.01304575]
[1737029876448,0.59658,3353.0,3352.9,0.59658]
[1737029876640,0.59658,3353.0,3352.9,2.60962575]
[1737029877843,0.59658,3353.0,3352.9,2.60963575]
[1737029878449,0.59658,3353.0,3352.9,2.01304575]
[1737029879744,0.59658,3353.0,3352.9,2.60983579]
[1737029880046,3.2078,3353.5,3352.9,4.37769657]
[1737029880255,0.59655,3353.2,3353.1,0.59654]
[1737029880450,0.59655,3353.2,3353.1,2.01324579]
[1737029880945,0.59652,3353.4,3353.1,2.60979579]
[1737029881148,0.59647,3353.7,3353.6,0.59644]
[1737029881344,0.59647,3353.7,3353.6,2.60958018]
[1737029881744,0.59643,3353.9,3353.8,0.5964]
[1737029882052,0.59643,3353.9,3353.8,2.60918611]
[1737029882752,0.59641,3354.0,3353.9,0.59639]
[1737029882948,1.49075,3354.6,3353.9,4.37672374]
[1737029883154,0.59632,3354.5,3354.4,0.59631]
[1737029883355,0.59632,3354.5,3354.4,2.60806774]
[1737029883563,0.59632,3354.5,3354.4,1.37056912]
[1737029883861,0.59632,3354.5,3354.4,0.77400252]
[1737029884658,0.5963,3354.5,3354.4,0.77299384]
[1737029885462,0.59641,3353.9,3353.8,4.4558]
[1737029885665,0.59641,3353.9,3353.8,4.57768996]
[1737029885960,0.59641,3353.9,3353.8,0.77322193]
[1737029886160,0.59641,3353.9,3353.8,0.37291751]
[1737029886560,0.59641,3353.9,3353.8,0.77336551]
[1737029886762,0.59641,3353.9,3353.8,0.37291751]
[1737029888359,2.08739,3354.0,3353.8,0.77185517]
[1737029888563,0.5965,3353.4,3353.3,3.8043]
[1737029888766,0.5965,3353.4,3353.3,8.1755561]
[1737029889062,1.49088,3354.3,3353.3,7.5790561]
[1737029889260,1.49088,3354.3,3353.6,2.96090078]
[1737029889261,0.59645,3353.7,3353.6,2.96090078]
[1737029889458,0.59645,3353.7,3353.6,2.00674996]
[1737029889662,3.80425,3353.7,3353.6,1.36851741]
[1737029889965,3.80425,3353.7,3353.6,0.77182416]
[1737029890167,0.5966,3352.8,3352.7,2.36445078]
[1737029890465,1.49127,3353.4,3352.7,4.84817444]
[1737029890466,3.2078,3353.3,3352.7,4.84817444]
[1737029890765,0.5966,3352.8,3352.7,2.36445078]
[1737029890963,0.5966,3352.8,3352.7,1.23241235]
[1737029892058,0.5966,3352.8,3352.7,1.23246308]
[1737029893769,2.98269,3353.2,3352.5,3.2078]
[1737029893770,1.49134,3353.2,3352.5,3.2078]
[1737029894070,0.59662,3352.7,3352.6,1.23270444]
[1737029894269,3.2078,3353.3,3352.6,1.23270444]
[1737029894466,4.69911,3353.3,3352.9,2.36445078]
[1737029894671,0.59657,3353.0,3352.9,2.36445078]
[1737029894867,0.59657,3353.0,3352.9,3.59686889]
[1737029895464,0.59657,3353.0,3352.9,1.23241811]
[1737029895662,3.2078,3353.3,3352.5,3.2078]
[1737029895858,0.59664,3352.6,3352.5,3.2078]
[1737029896060,0.59664,3352.6,3352.5,4.4405935]
[1737029902172,0.59664,3352.6,3352.5,5.21149036]
[1737029903370,0.59664,3352.6,3352.5,5.80815036]
[1737029903574,0.59664,3352.6,3352.5,5.21197017]
[1737029904974,0.59664,3352.6,3352.5,4.24287879]
[1737029905270,0.59664,3352.6,3352.5,5.21140337]
[1737029905467,0.59664,3352.6,3352.5,3.97869042]
[1737029905773,0.59664,3352.6,3352.5,0.77089042]
[1737029908673,0.59664,3352.6,3352.5,0.37278593]
[1737029909381,0.59664,3352.6,3352.1,1.248]
[1737029909382,0.59671,3352.2,3352.1,1.248]
[1737029909574,0.59671,3352.2,3352.1,3.25055187]
[1737029910377,0.59671,3352.2,3352.1,2.00255187]
[1737029910780,0.59671,3352.2,3352.1,1.36647801]
[1737029911178,0.59671,3352.2,3352.1,0.7702095]
[1737029912480,0.59671,3352.2,3352.1,0.77019935]
[1737029912881,0.59671,3352.2,3352.1,0.77021961]
[1737029913083,0.59671,3352.2,3352.1,0.77022287]
[1737029913277,0.59671,3352.2,3352.1,1.36695287]
[1737029913583,0.59671,3352.3,3352.2,0.59668]
[1737029913778,0.59671,3352.3,3352.2,3.04801194]
[1737029914290,0.59671,3352.3,3352.2,3.04846904]
[1737029915080,0.59671,3352.3,3352.2,2.45175904]
[1737029916185,0.59671,3352.3,3352.2,2.45377651]
[1737029916484,0.59671,3352.3,3352.2,2.00517651]
[1737029918184,0.59671,3352.3,3352.2,2.00459183]
[1737029920486,0.59671,3352.3,3352.2,2.60130183]
[1737029920687,0.59669,3352.5,3352.4,0.59664]
[1737029920885,0.59669,3352.5,3352.4,4.96568261]
[1737029921188,0.59669,3352.5,3352.4,4.36904261]
[1737029921387,0.59669,3352.5,3352.4,2.00459183]
[1737029921582,0.59677,3351.9,3351.7,0.4582]
[1737029921790,0.59677,3351.9,3351.8,2.45838857]
[1737029922386,0.59677,3351.9,3351.8,3.05516857]
[1737029923691,0.59677,3351.9,3351.8,3.05516432]
[1737029924084,0.59677,3351.9,3351.8,2.45838432]
[1737029925188,0.59677,3351.9,3351.8,3.05516432]
[1737029925585,0.59677,3351.9,3351.8,2.45838432]
[1737029926091,0.59677,3351.9,3351.8,2.00588432]
[1737029927383,0.59677,3351.9,3351.8,2.60266432]
[1737029927580,1.49172,3352.4,3351.9,0.59677]
[1737029927780,0.5967,3352.4,3352.3,0.59667]
[1737029927987,0.5967,3352.4,3352.3,2.60255432]
[1737029928291,0.5967,3352.4,3352.3,4.9670051]
[1737029928592,0.5967,3352.4,3352.3,2.60255432]
[1737029928891,0.5967,3352.4,3352.3,2.00588432]
[1737029931491,0.5967,3352.4,3352.3,2.60257432]
[1737029931989,0.5967,3352.4,3352.3,2.00588432]
[1737029932393,0.5967,3352.4,3352.3,2.60257432]
[1737029932985,0.5967,3352.4,3352.3,2.60242481]
[1737029938493,0.5967,3352.4,3352.3,2.00573481]
[1737029940093,0.5967,3352.4,3352.3,0.7714337]
[1737029940598,0.59682,3351.6,3351.5,3.2078]
[1737029940802,0.59682,3351.6,3351.5,4.44295579]
[1737029941696,0.59682,3351.6,3351.5,4.43296316]
[1737029942696,3.80462,3351.6,3351.5,1.22516316]
[1737029943293,3.2078,3351.6,3350.9,6.01443]
[1737029943496,0.59693,3351.1,3351.0,4.18683844]
[1737029945203,1.4921,3351.5,3351.0,3.58992844]
[1737029945505,0.59685,3351.5,3351.4,0.59684]
[1737029945704,0.59685,3351.5,3351.4,1.82231766]
[1737029946903,3.2078,3352.0,3351.4,1.82231766]
[1737029946904,3.2078,3352.0,3351.4,4.43327766]
[1737029947107,1.49158,3352.7,3352.0,1.49188]
[1737029947405,0.59668,3352.4,3352.3,2.96114078]
[1737029947604,0.59668,3352.4,3352.3,1.82123916]
[1737029947797,0.59668,3352.4,3352.3,1.22454916]
[1737029948997,3.2078,3352.4,3351.6,3.6525]
[1737029949206,0.59678,3351.8,3351.7,1.22310377]
[1737029949400,3.2078,3351.8,3351.4,1.24]
[1737029949602,0.59684,3351.5,3351.4,1.24]
[1737029949900,0.59684,3351.5,3351.4,2.46334569]
[1737029950809,0.59684,3351.5,3351.4,2.46340935]
[1737029951503,0.59684,3351.5,3351.4,1.22340935]
[1737029952507,0.59684,3351.5,3351.4,1.98807384]
[1737029952804,0.59684,3351.5,3351.4,0.76468953]
[1737029953508,0.59684,3351.5,3351.4,1.98825933]
[1737029953698,0.59684,3351.5,3351.4,0.76468953]
[1737029954309,0.59684,3351.5,3351.4,1.98822444]
[1737029954709,0.59684,3351.5,3351.4,1.98819252]
[1737029955012,4.69958,3352.3,3351.4,6.68810252]
[1737029955200,0.59678,3351.9,3351.8,0.59677]
[1737029955408,0.59678,3351.9,3351.8,3.05036252]
[1737029956215,4.69958,3352.3,3351.8,2.45359252]
[1737029956515,0.59676,3352.0,3351.9,2.58446528]
[1737029959922,0.59674,3352.2,3352.1,0.59671]
[1737029960215,0.59674,3352.2,3352.1,2.58443528]
[1737029961010,0.59674,3352.2,3352.1,1.98772528]
[1737029961215,0.59674,3352.2,3352.1,2.58445528]
[1737029962018,0.59668,3352.4,3352.3,0.59669]
[1737029962214,1.49158,3352.7,3352.6,0.59662]
[1737029962215,0.59665,3352.7,3352.6,0.59662]
[1737029962518,0.59665,3352.7,3352.6,1.98772528]
[1737029962921,0.59665,3352.7,3352.6,2.58436528]
[1737029963123,0.59665,3352.7,3352.6,1.98772528]
[1737029963519,0.59665,3352.7,3352.6,0.76450696]
[1737029963724,0.59665,3352.7,3352.6,0.76393932]
[1737029965922,0.59665,3352.7,3352.6,0.76391502]
[1737029966523,0.59665,3352.7,3352.6,1.98617324]
[1737029966922,0.59665,3352.7,3352.6,0.76391502]
[1737029967613,0.59665,3352.7,3352.6,0.76382788]
[1737029968522,0.59665,3352.7,3351.9,0.59675]
[1737029968523,0.59677,3352.0,3351.9,0.59675]
[1737029968725,0.59677,3352.0,3351.9,2.58298889]
[1737029969424,0.59674,3352.1,3352.0,0.59672]
[1737029969722,0.59674,3352.1,3352.0,2.58295889]
[1737029970024,0.59674,3352.1,3352.0,1.98623889]
[1737029970928,0.59674,3352.1,3352.0,1.36068527]
[1737029971126,0.59674,3352.1,3352.0,1.98635614]
[1737029971323,0.59674,3352.1,3352.0,1.9863021]
[1737029971520,0.59674,3352.1,3352.0,2.5830521]
[1737029971822,0.59674,3352.1,3352.0,1.9863021]
[1737029972217,3.80454,3352.1,3352.0,0.76393863]
[1737029972428,3.80454,3352.1,3352.0,0.36878143]
[1737029972621,0.5968,3351.7,3351.6,0.492]
[1737029972821,0.5968,3351.7,3351.6,1.9869146]
[1737029973120,0.5968,3351.7,3351.6,0.76419515]
[1737029973323,0.5968,3351.7,3351.6,1.98670567]
[1737029974516,0.5968,3351.7,3351.6,0.7641686]
[1737029974729,3.8046,3351.7,3351.6,0.7641686]
[1737029975230,0.59682,3351.6,3351.5,0.00189439]
[1737029975526,1.54532,3351.6,3351.5,0.76624267]
[1737029976626,1.54532,3351.6,3351.5,0.00189439]
[1737029978726,1.54532,3351.6,3351.5,4.39e-06]
[1737029979328,6.54532,3351.6,3351.5,4.39e-06]
[1737029980128,1.54532,3351.6,3351.5,4.39e-06]
[1737029983638,1.06662,3351.6,3351.5,4.39e-06]
[1737029985934,0.59682,3351.6,3351.5,4.39e-06]
[1737029986232,0.59682,3351.6,3351.5,0.98937471]
[1737029986533,0.59682,3351.6,3351.5,0.76054138]
[1737029988133,0.59682,3351.6,3351.5,0.76057134]
[1737029989442,0.59682,3351.6,3351.5,4.39e-06]
[1737029990444,0.59682,3351.6,3351.5,0.36812775]
[1737029990648,0.59682,3351.6,3351.5,4.39e-06]
[1737029993537,0.59682,3351.6,3351.5,0.36834807]
[1737029993734,0.59682,3351.6,3351.5,0.36833176]
[1737029993936,0.59682,3351.6,3351.5,4.39e-06]
[1737029995147,0.59682,3351.6,3351.5,0.36843641]
[1737029995344,0.59682,3351.6,3351.5,0.7613953]
[1737029995545,0.59682,3351.6,3351.5,0.76158291]
[1737029996042,0.59682,3351.6,3351.5,3.05642173]
[1737029997045,0.59682,3351.6,3351.5,2.45958173]
[1737029997242,0.59682,3351.6,3351.5,0.47970439]
[1737029997442,0.59682,3351.6,3351.5,0.76172484]
[1737029999552,0.59682,3351.6,3351.5,1.98138896]
[1737030000948,0.59682,3351.6,3351.5,0.76172484]
[1737030001844,1.06212,3351.6,3351.5,0.76172484]
[1737030002741,1.52602,3351.6,3351.5,0.76172484]
[1737030002946,0.59682,3351.6,3351.5,0.76172484]
[1737030003854,0.59682,3351.6,3351.5,4.39e-06]
[1737030005047,0.59682,3351.6,3351.5,1.35446348]
[1737030005243,0.59682,3351.6,3351.5,1.98486542]
[1737030005943,0.59682,3351.6,3351.5,2.58170542]
[1737030006148,0.59673,3352.1,3352.0,0.59674]
[1737030006349,0.59673,3352.1,3352.0,1.98428881]
[1737030006555,0.59673,3352.1,3352.0,1.35418169]
[1737030006855,0.59682,3351.6,3351.5,4.39e-06]
[1737030007056,0.59682,3351.6,3351.5,0.58619802]
[1737030007853,0.59682,3351.6,3351.5,4.39e-06]
[1737030008350,0.59682,3351.6,3351.5,0.58601937]
[1737030009652,0.59682,3351.6,3351.5,0.58587295]
[1737030010860,0.59682,3351.6,3351.5,1.18271295]
[1737030011059,3.2078,3352.2,3351.5,0.58587295]
[1737030011355,3.80453,3352.2,3352.1,0.59673]
[1737030011555,3.2078,3352.2,3352.1,4.78804934]
[1737030011752,0.59671,3352.2,3352.1,5.03466856]
[1737030012061,0.59671,3352.2,3352.1,5.63139856]
[1737030012257,1.49152,3352.8,3352.1,7.39911934]
[1737030012560,0.59669,3352.4,3352.3,0.59668]
[1737030012755,0.59669,3352.4,3352.3,0.58586856]
[1737030014353,0.59667,3352.6,3352.5,0.59664]
[1737030014555,0.5965,3353.4,3353.2,0.59652]
[1737030014750,11.67848613,3353.7,3353.0,3.60445078]
[1737030015056,11.67848613,3353.7,3353.3,2.36445078]
[1737030015365,11.67848613,3353.7,3353.4,1.18123354]
[1737030015552,10.1009331,3353.5,3353.4,2.12743354]
[1737030016056,0.5964,3354.0,3353.8,0.59642]
[1737030016254,0.5964,3354.0,3353.9,0.58473354]
[1737030016557,0.59641,3353.9,3353.8,4.4478]
[1737030017353,4.69861,3354.4,3353.8,4.4478]
[1737030017354,3.2078,3354.4,3353.8,4.4478]
[1737030017547,3.2078,3354.8,3353.8,4.4478]
[1737030017756,3.2078,3354.8,3353.9,0.58235772]
[1737030017757,0.59632,3354.4,3353.9,0.58235772]
[1737030017956,0.59637,3354.2,3354.0,1.17872175]
[1737030018148,0.59637,3354.2,3354.1,0.59637]
[1737030018353,3.2078,3354.8,3354.1,2.36445078]
[1737030018554,3.2078,3354.8,3354.2,0.59634]
[1737030018756,0.59634,3354.3,3354.2,0.4604]
[1737030018963,0.59634,3354.3,3354.2,0.82398874]
[1737030019264,3.2078,3354.8,3354.2,0.4604]
[1737030019556,0.59631,3354.5,3354.4,0.59632]
[1737030019766,3.2078,3354.8,3354.2,0.4604]
[1737030019767,0.59634,3354.3,3354.2,0.4604]
[1737030020761,0.59641,3354.0,3353.8,7.40867078]
[1737030020949,0.59638,3354.1,3353.9,0.5964]
[1737030021155,1.49072,3354.6,3353.8,6.81225078]
[1737030021355,0.59638,3354.1,3353.9,0.59641]
[1737030021556,1.49072,3354.6,3353.8,7.40867078]
[1737030021557,0.59639,3354.0,3353.8,7.40867078]
[1737030021862,0.59639,3354.0,3353.9,0.59641]
[1737030022055,3.6674,3354.8,3353.8,6.81225078]
[1737030022257,5.15807,3354.8,3353.8,7.40867078]
[1737030022554,0.59641,3353.9,3353.8,6.81225078]
[1737030023261,0.59646,3353.6,3353.5,0.4574]
[1737030023849,0.4666,3353.9,3353.1,0.4533]
[1737030023850,0.59653,3353.2,3353.1,0.4533]
[1737030024056,0.59653,3353.2,3353.1,1.6933]
[1737030025158,4.699,3353.6,3353.0,3.2078]
[1737030025350,0.59655,3353.1,3353.0,3.2078]
[1737030025554,0.59655,3353.1,3353.0,3.80437]
[1737030025857,0.59655,3353.1,3353.0,3.2078]
[1737030026059,0.59651,3353.4,3353.0,3.2078]
[1737030026355,0.4666,3353.9,3353.2,2.36445078]
[1737030026559,3.695,3354.1,3353.2,2.36445078]
[1737030026757,0.59643,3353.8,3353.5,2.36445078]
[1737030027060,0.5964,3354.0,3353.9,0.5964]
[1737030027560,0.59642,3353.9,3353.8,0.59642]
[1737030027761,3.2078,3354.1,3353.6,1.7069]
[1737030027961,0.5964,3354.0,3353.9,0.5964]
[1737030028161,0.4892,3354.4,3353.6,1.7069]
[1737030028460,3.2078,3354.1,3353.4,3.2078]
[1737030028760,0.59645,3353.7,3353.6,0.4516]
[1737030029566,0.59642,3353.9,3353.8,0.59642]
[1737030030066,3.2078,3354.1,3353.8,2.36445078]
[1737030030365,3.80417,3354.1,3354.0,0.59639]
[1737030030565,3.80417,3354.1,3354.0,1.83639]
[1737030031057,3.2078,3354.1,3354.0,1.83639]
[1737030031253,3.2078,3354.7,3354.0,1.24]
[1737030031464,0.5963,3354.5,3354.4,2.96077078]
[1737030031665,0.5963,3354.6,3354.5,0.59629]
[1737030031860,0.5963,3354.5,3354.4,2.96076078]
[1737030032061,3.2078,3354.7,3354.4,2.36445078]
[1737030032453,0.5963,3354.5,3354.4,2.96076078]
[1737030032859,0.59635,3354.3,3354.2,0.59636]
[1737030033054,0.59635,3354.3,3354.1,2.36445078]
[1737030033055,0.4565,3354.6,3354.1,2.36445078]
[1737030033259,0.4565,3354.6,3354.3,0.59633]
[1737030033260,0.59633,3354.4,3354.3,0.59633]
[1737030033460,0.59635,3354.3,3354.2,0.59635]
[1737030033663,0.4565,3354.6,3353.9,3.6891]
[1737030033860,0.4565,3354.6,3354.0,1.262]
[1737030034067,0.59637,3354.2,3354.1,0.59636]
[1737030034875,0.4565,3354.6,3354.0,1.262]
[1737030035369,0.59637,3354.2,3354.1,0.59636]
[1737030037475,0.4565,3354.6,3354.1,0.36281878]
[1737030037673,0.59635,3354.3,3354.2,0.59634]
[1737030038073,0.4565,3354.6,3354.0,1.262]
[1737030038278,0.59637,3354.2,3354.1,0.95935696]
[1737030039175,0.59637,3354.2,3354.1,1.34531155]
[1737030039375,0.59637,3354.2,3354.1,3.70976233]
[1737030040183,0.4565,3354.6,3354.1,3.6951056]
[1737030040482,0.4565,3354.6,3354.4,0.5963]
[1737030040483,0.59632,3354.5,3354.4,0.5963]
[1737030040785,0.59632,3354.5,3354.4,1.34525155]
[1737030041080,0.59632,3354.5,3354.4,1.34567071]
[1737030041280,0.59632,3354.5,3354.4,0.74937071]
[1737030041886,0.59632,3354.5,3354.4,1.34569071]
[1737030042282,0.59632,3354.5,3354.4,1.92814955]
[1737030042582,0.59632,3354.5,3354.4,0.74937071]
[1737030042782,0.59632,3354.5,3354.4,1.33183791]
[1737030042977,0.59632,3354.5,3354.4,1.33182679]
[1737030043180,0.59632,3354.5,3354.4,1.9281101]
[1737030043879,0.4565,3354.6,3354.4,1.3317901]
[1737030044082,3.2078,3355.5,3354.5,1.9280901]
[1737030044382,0.4461,3355.1,3354.7,2.36445078]
[1737030044584,0.59625,3354.9,3354.8,1.3317901]
[1737030044788,0.59625,3354.9,3354.8,1.9280401]
[1737030045386,3.2078,3355.5,3354.8,1.3317901]
[1737030045579,0.59618,3355.3,3355.2,0.59616]
[1737030045876,0.59618,3355.3,3355.2,1.9279501]
[1737030046082,4.25003,3355.5,3355.4,0.59614]
[1737030046283,3.80386,3355.9,3355.8,0.59607]
[1737030046479,3.2078,3355.9,3355.8,1.92905888]
[1737030047075,3.2078,3355.9,3355.8,2.41825888]
[1737030047280,0.455,3356.4,3355.8,1.82218888]
[1737030047481,0.59599,3356.3,3356.2,0.59599]
[1737030047686,0.59599,3356.3,3356.2,0.75035774]
[1737030048183,0.455,3356.4,3356.3,0.59598]
[1737030048387,0.59592,3356.7,3356.6,0.59592]
[1737030048581,0.59592,3356.7,3356.6,1.34627774]
[1737030048775,0.59592,3356.7,3356.6,1.92745144]
[1737030049186,0.59592,3356.7,3356.6,1.34627774]
[1737030049682,0.59592,3356.7,3356.6,0.75035774]
[1737030049888,0.59592,3356.7,3356.6,1.34628774]
[1737030050084,3.6628,3356.9,3356.6,0.75035774]
[1737030050290,4.25869,3356.9,3356.8,0.59589]
[1737030050974,4.25869,3356.9,3356.8,0.36233451]
[1737030051283,4.25869,3356.9,3356.7,0.5959]
[1737030051284,4.25868,3356.9,3356.7,0.5959]
[1737030051486,0.59591,3356.8,3356.7,0.59591]
[1737030051792,0.59591,3356.8,3356.7,0.95797165]
[1737030051983,0.59591,3356.8,3356.7,1.34198022]
[1737030052183,0.455,3356.9,3356.8,0.59589]
[1737030052384,0.59591,3356.7,3356.6,0.59593]
[1737030052688,0.5959,3356.8,3356.7,0.59591]
[1737030052885,0.5959,3356.8,3356.7,0.74557318]
[1737030053092,0.455,3356.9,3356.5,3.6787]
[1737030053394,0.59591,3356.8,3356.7,0.5959]
[1737030053579,1.05089,3356.9,3356.8,0.5959]
[1737030053779,0.455,3356.9,3356.5,3.6787]
[1737030053985,3.2078,3357.4,3356.6,0.74507231]
[1737030054182,0.59588,3356.9,3356.8,0.59588]
[1737030054386,3.6655,3357.4,3357.0,0.59586]
[1737030054795,3.6655,3357.4,3357.3,0.59581]
[1737030055186,4.2613,3357.4,3357.2,0.59581]
[1737030055395,3.6655,3357.4,3357.3,0.59581]
[1737030055593,1.0535,3357.4,3357.3,0.59581]
[1737030056093,0.59572,3357.8,3357.5,0.59577]
[1737030056293,0.59576,3357.6,3357.5,0.59576]
[1737030056491,0.59575,3357.7,3357.6,0.59575]
[1737030056993,3.6566,3357.9,3357.3,0.4704]
[1737030057185,0.59573,3357.8,3357.7,0.59573]
[1737030057381,3.2078,3358.4,3357.4,3.2078]
[1737030057591,3.2078,3358.4,3357.3,0.4704]
[1737030057592,0.59561,3358.5,3358.3,0.59563]
[1737030057792,0.59559,3358.5,3358.3,0.59563]
[1737030058089,0.59563,3358.3,3358.2,1.262]
[1737030059190,3.2078,3358.8,3358.4,0.59561]
[1737030059389,0.59563,3358.3,3358.2,1.262]
[1737030059693,0.59562,3358.4,3358.2,1.85764]
[1737030059893,0.59562,3358.4,3358.3,0.59563]
[1737030060196,3.2078,3358.8,3358.2,1.262]
[1737030060398,0.59563,3358.3,3358.2,1.262]
[1737030060695,3.2078,3358.3,3357.5,2.60739199]
[1737030060887,0.59565,3358.2,3358.0,0.59568]
[1737030061092,0.59564,3358.3,3358.1,0.59566]
[1737030061290,3.2078,3358.7,3358.2,0.59565]
[1737030061594,0.59562,3358.4,3358.3,1.86262]
[1737030061897,3.80337,3358.7,3358.6,0.59558]
[1737030062194,0.5956,3358.5,3358.4,0.5956]
[1737030062390,0.59561,3358.5,3358.4,0.5956]
[1737030062697,0.59561,3358.4,3358.3,1.267]
[1737030063793,3.2078,3358.7,3358.3,1.267]
[1737030063992,0.4488,3358.9,3358.4,2.36445078]
[1737030064193,1.4886,3359.4,3358.7,2.36445078]
[1737030064492,0.59554,3358.8,3358.7,2.36445078]
[1737030064686,0.59554,3358.8,3358.7,2.96001078]
[1737030064891,0.4604,3359.4,3358.7,2.96001078]
[1737030064892,0.4604,3359.4,3358.7,2.36445078]
[1737030065597,0.4604,3359.4,3358.8,1.266]
[1737030066298,0.4604,3359.4,3358.9,0.59551]
[1737030066499,0.59552,3358.9,3358.8,1.266]
[1737030066703,0.59556,3358.7,3358.6,3.2078]
[1737030066901,0.59556,3358.7,3358.6,1.266]
[1737030067893,0.4781,3359.1,3358.6,1.266]
[1737030068093,0.59553,3358.9,3358.8,2.95998078]
[1737030068297,0.59552,3359.0,3358.9,0.59552]
[1737030068497,0.5955,3359.1,3358.9,0.59552]
[1737030068804,0.4604,3359.4,3359.1,0.59547]
[1737030069098,0.59549,3359.1,3359.0,0.59549]
[1737030069294,0.59548,3359.2,3359.1,0.59548]
[1737030069600,0.4604,3359.4,3358.8,2.36445078]
[1737030069800,3.2078,3359.2,3358.9,1.266]
[1737030070100,0.5955,3359.0,3358.9,1.86151]
[1737030070289,0.4604,3359.4,3358.9,1.266]
[1737030070494,0.59545,3359.3,3359.2,0.59547]
[1737030070700,0.4604,3359.4,3359.3,0.59545]
[1737030070897,0.59543,3359.5,3359.1,2.36445078]
[1737030071102,0.59543,3359.5,3359.4,0.59543]
[1737030071298,3.2078,3359.6,3359.2,0.4486]
[1737030071503,0.59542,3359.5,3359.2,0.4486]
[1737030072003,0.59542,3359.5,3359.4,0.59542]
[1737030072198,3.2078,3359.6,3359.2,0.4486]